[Event "1st Bangalore GM-Open-A 2024"]
[Site "Bangalore"]
[Date "2024.01.18"]
[Round "1.6"]
[White "Matta, Vinay Kumar"]
[Black "Sankalp Gupta"]
[Result "1-0"]
[ECO "C02"]
[WhiteElo "2132"]
[BlackElo "2535"]
[Annotator "TA"]
[PlyCount "127"]
[EventDate "2024.01.20"]
[EventType "swiss"]
[EventCountry "IND"]
[SourceTitle "playchess.com"]
[Source "ChessBase"]
[SourceQuality "1"]
[TimeControl "5400+30"]

{[%evp 12,127,0,0,0,-14,-14,-26,-13,-19,15,0,18,-13,25,26,41,20,95,81,83,85,59,50,72,24,68,73,68,60,70,61,75,0,98,114,184,114,110,94,115,53,202,142,161,133,281,258,380,307,295,307,316,276,297,277,297,266,270,206,295,298,403,227,348,168,219,181,195,182,262,255,269,210,269,275,266,227,270,175,330,291,400,389,395,376,372,364,370,362,361,361,728,702,698,664,1074,1065,1412,1489,1489,1485,1437,1402,1456,1450,1342,1335,1202,1078,1062,1056,1432,1381,12183,10690,7216,6277]} 1. e4 {[%emt 0:00:04]} e6 {[%emt 0:01:05]} 2. d4 {[%emt 0:00:02]} d5 {[%emt 0:00:07]} 3. e5 {[%emt 0:00:07]} c5 {[%emt 0:00:04]} 4. c3 {[%emt 0:00:05]} Nc6 {[%emt 0:00:04]} 5. Nf3 {[%emt 0:00:06]} Bd7 {[%emt 0:00:06]} 6. Be2 {[%emt 0:05:25]} Nge7 {[%emt 0:01:42]} 7. Na3 {[%emt 0:00:51]} cxd4 {[%emt 0:00:39] C02: French: Advance Variation.} 8. Nb5 {[%emt 0:02:51][%cal Rb5d6]} Ng6 {[%emt 0:13:17]} 9. cxd4 {[%emt 0:03:24]} a6 {[%emt 0:00:18] Black has an edge.} 10. Nc3 {[%emt 0:00:25]} Be7 {[%emt 0:03:41] Repels h4} 11. O-O {[%emt 0:03:56]} O-O {[%emt 0:01:47] [#]} 12. Bd3 $146 {[%emt 0:01:42]} ({Predecessor:} 12. Be3 Rc8 13. Rc1 b5 14. Bd3 Na5 15. b3 Nc6 16. Ne2 Qb6 17. Qd2 Ba3 18. Rcd1 {½-½ Groves,D-Burri,P (2113) Webchess op2 Gr35 email 2006}) 12... b5 {[%emt 0:01:37]} 13. Ne2 {[%emt 0:00:59]} Qb6 {[%emt 0:03:24]} 14. Bg5 {[%emt 0:06:48]} f6 {[%emt 0:10:30]} (14... Bxg5 $11 {remains equal.} 15. Nxg5 Rac8) 15. exf6 $16 {[%emt 0:01:36]} gxf6 {[%emt 0:00:20]} 16. Bh6 {[%emt 0:01:56]} Rf7 {[%emt 0:00:29]} 17. Re1 {[%emt 0:17:10]} Bd6 {[%emt 0:04:45]} 18. h4 {[%emt 0:04:22]} ({White should try} 18. Rc1 $16) 18... Kh8 {[%emt 0:15:34]} (18... Nge7 {keeps more tension.} 19. Nf4 Nb4 20. Nh5 Nxd3 21. Qxd3 Kh8) 19. Bxg6 $1 {[%emt 0:10:57]} hxg6 {[%emt 0:00:02]} 20. Bf4 {[%emt 0:00:20]} Bb4 {[%emt 0:03:10]} 21. Bd2 {[%emt 0:02:31]} Bd6 {[%emt 0:03:01]} 22. Bf4 {[%emt 0:00:16]} (22. Nf4 $16) 22... Bf8 {[%emt 0:01:08]} (22... Bb4 $11) 23. Qd3 {[%emt 0:04:18]} Ne7 {[%emt 0:02:18]} (23... Qd8 $16 {was called for.}) 24. Bd2 {[%emt 0:02:41]} (24. Rac1 $18) 24... a5 {[%emt 0:09:35]} 25. Nf4 $36 {[%emt 0:00:57][%mdl 2048] White is on the roll.} Rg7 {[%emt 0:00:34]} 26. b4 {[%emt 0:08:48] White is much more active.} (26. g4 $16) 26... a4 {[%emt 0:03:48]} ({Black should play} 26... axb4 $14 27. Bxb4 Nf5 28. Bxf8 Rxf8) 27. Rac1 {[%emt 0:02:23]} Kg8 {[%emt 0:01:59]} 28. g4 {[%emt 0:03:10][%cal Bg2g4,Bg4g5][%mdl 32]} Ra6 {[%emt 0:03:31] Loses the game.} (28... Rh7 $16 29. a3 (29. Nxg6 Nxg6 30. Qxg6+ Rg7 $16) 29... Re8) 29. g5 $18 {[%emt 0:01:10]} f5 {[%emt 0:03:46] Black is weak on the dark squares} (29... fxg5 $142 30. Nxg5 Nf5) 30. Ne5 {[%emt 0:00:36]} Be8 {[%emt 0:00:12]} 31. Qe3 {[%emt 0:02:35]} Rh7 {[%emt 0:05:30]} 32. Nf3 {[%emt 0:00:19] A dynamic duo of knights.} Bf7 {[%emt 0:00:44]} 33. a3 {[%emt 0:00:45]} Qb8 {[%emt 0:01:26]} 34. Kg2 {[%emt 0:05:11]} Bg7 {[%emt 0:04:13]} 35. Nd3 {[%emt 0:03:26]} Nc8 {[%emt 0:02:07]} (35... Rc6 $142 36. Rc5 Rxc5 37. bxc5 (37. Nxc5 Qc8 $16) 37... Nc6) 36. Qe2 {[%emt 0:00:46]} Bf8 {[%emt 0:00:56]} 37. Nc5 {[%emt 0:02:05]} (37. Bf4 $142 Nd6 38. Nfe5) 37... Ra7 {[%emt 0:00:01]} (37... Bxc5 {was worth a try.} 38. bxc5 Na7) 38. Qd3 {[%emt 0:00:59]} (38. Nxe6 Re7 $18) (38. Ne5 $142 Nb6 39. Nxf7 (39. Qxb5 Be8 $16) 39... Raxf7 40. Qxe6) 38... Re7 {[%emt 0:00:33] Against Nd7} (38... Nd6 {was necessary.}) 39. Rh1 {[%emt 0:00:34]} Bg7 {[%emt 0:00:38] [#]} 40. Rce1 $1 {[%emt 0:00:16][%cal Oh4h5]} Qb6 {[%emt 0:01:11]} (40... Rh5 $142 41. Qe2 (41. Ne5 Bxe5 42. Rxe5 Nd6 $16) 41... Kf8) 41. Bf4 {[%emt 0:00:20]} Be8 {[%emt 0:00:11]} 42. Re2 {[%emt 0:00:35]} Bh8 {[%emt 0:00:44]} 43. Rhe1 {[%emt 0:00:25][%cal Re2e6]} Bf7 {[%emt 0:00:02]} 44. Bg3 {[%emt 0:00:42]} Qc6 {[%emt 0:00:37]} 45. Qc3 {[%emt 0:01:11][%cal Oc5a4]} Qe8 $2 {[%emt 0:00:43]} (45... Nd6 46. Nxa4 Nc4) 46. Bf4 {[%emt 0:01:21]} Rh5 {[%emt 0:00:41]} 47. Na6 {[%emt 0:00:12][%cal Bc5a6,Ba6c7,Bc7b5,Bb5d6][%mdl 32]} Nb6 {[%emt 0:00:26]} 48. Nc7 {[%emt 0:00:10]} Qd7 {[%emt 0:00:09]} 49. Qc5 {[%emt 0:00:12][%csl LRb5,LRb6]} Nc4 {[%emt 0:00:25]} 50. Nxb5 {[%emt 0:00:19]} ({Weaker is} 50. Qxb5 Qxb5 51. Nxb5 Rd7 $18) 50... Bg7 {[%emt 0:00:28]} 51. Nd6 {[%emt 0:00:29]} Nxa3 {[%emt 0:00:29]} (51... Nxd6 52. Bxd6 Re8) 52. b5 {[%emt 0:00:45] White is clearly winning.} Nc4 {[%emt 0:00:05]} 53. b6 {[%emt 0:00:12] Black must now prevent b7.} Qd8 {[%emt 0:01:32]} 54. Nxf7 {[%emt 0:00:50]} Kxf7 {[%emt 0:00:10] [#]} 55. Rxe6 $3 {[%emt 0:00:47][%mdl 576] Deflection, Promotion} Rxe6 {[%emt 0:00:54]} 56. Rxe6 {[%emt 0:00:06]} Kxe6 {[%emt 0:00:22]} 57. b7 {[%emt 0:00:10] White wants to mate with Qc8+.} Rh8 {[%emt 0:00:04]} 58. b8=Q (58. b8=B $2 {perishes.} Qb6 59. Qxb6+ Nxb6 $19) 58... Qxb8 {[%emt 0:00:01]} 59. Bxb8 {[%emt 0:00:31]} Rxb8 {[%emt 0:00:01]} 60. Qa7 {[%emt 0:01:22]} Rg8 {[%emt 0:00:02]} 61. Qxa4 {[%emt 0:00:16]} Nd6 {[%emt 0:00:29]} 62. Ne1 {[%emt 0:00:25] Nd3 would be deadly.} Rh8 {[%emt 0:00:14]} 63. Nd3 {[%emt 0:00:16] Intending Nf4+ and mate.} Rd8 {[%emt 0:02:22]} 64. Qa7 {[%emt 0:00:51] An entertaining game by Matta.   Weighted Error Value: White=0.29 (precise) /Black=0.47} 1-0

[Event "1st Bangalore GM-Open-A 2024"]
[Site "Bangalore"]
[Date "2024.01.18"]
[Round "1.7"]
[White "Lalit Babu M R"]
[Black "Gaurav Rajesh Zagade"]
[Result "1/2-1/2"]
[ECO "A17"]
[WhiteElo "2525"]
[BlackElo "2132"]
[Annotator "TA"]
[PlyCount "145"]
[EventDate "2024.01.20"]
[EventType "swiss"]
[EventCountry "IND"]
[SourceTitle "playchess.com"]
[Source "ChessBase"]
[SourceQuality "1"]
[TimeControl "5400+30"]

{[%evp 9,145,6,23,3,17,23,23,7,16,22,16,2,16,-11,-5,-43,-22,-15,-6,-15,-18,-15,-24,-52,-28,-41,-31,-41,-15,-18,-12,-39,-36,-105,-113,-203,-118,-106,-109,-133,-140,-50,-41,-247,-228,-235,-15,-15,-24,-24,-22,-316,-28,-18,-19,-245,-197,-188,-194,-188,-167,-178,-92,-92,-92,-92,-79,-93,-84,-84,-82,-92,-69,-67,-60,-68,-56,-54,0,-43,-16,-17,-27,-27,0,0,10,0,0,0,20,0,8,8,20,20,20,20,20,16,16,20,20,13,13,13,13,13,13,13,13,13,15,15,15,15,15,15,15,0,0,0,0,0,0,0,0,0,0,0,0,0,0,0,0,-8,-8,-8]} 1. Nf3 {[%emt 0:00:05]} Nf6 {[%emt 0:00:15]} 2. c4 {[%emt 0:00:05]} e6 {[%emt 0:00:22]} 3. e3 {[%emt 0:01:28]} d5 {[%emt 0:02:08]} 4. Nc3 {[%emt 0:00:25]} Be7 {[%emt 0:03:55]} 5. b3 {[%emt 0:00:26]} c5 {[%emt 0:01:26]} 6. Bb2 {[%emt 0:01:37] A17: English Opening: 1...Nf6 with ...Bb4.} Nc6 {[%emt 0:00:59]} 7. cxd5 {[%emt 0:00:29]} exd5 {[%emt 0:01:44]} 8. Bb5 {[%emt 0:00:50] White has an edge.} Bd7 {[%emt 0:08:24]} 9. O-O {[%emt 0:03:29]} O-O {[%emt 0:00:41]} 10. Rc1 {[%emt 0:05:29] [#]} Rc8 $146 {[%emt 0:03:19]} ({Predecessor:} 10... a6 11. Bxc6 Bxc6 12. Ne5 Rc8 13. Ne2 Nd7 14. Nxc6 Rxc6 15. Nf4 Nf6 16. Qf3 Bd6 17. Bxf6 Qxf6 18. Nxd5 Qxf3 19. gxf3 {1-0 Wei,Y (2726)-Nogerbek,K (2471) Asian Games Hangzhou rapid 2023 (4)}) 11. Bxc6 {[%emt 0:08:20]} Bxc6 {[%emt 0:02:09]} 12. d4 {[%emt 0:00:07]} b6 {[%emt 0:02:29]} (12... c4 $5 {[%cal Rb7b5]}) 13. Ne5 {[%emt 0:06:28]} Bb7 {[%emt 0:02:58]} 14. dxc5 {[%emt 0:01:26]} bxc5 {[%emt 0:01:10]} 15. Na4 {[%emt 0:01:21]} Bd6 {[%emt 0:17:42]} 16. Ng4 {[%emt 0:20:30]} Ne4 {[%emt 0:11:04]} 17. f3 {[%emt 0:00:26]} Ng5 {[%emt 0:01:05]} 18. f4 {[%emt 0:00:08]} Ne4 {[%emt 0:02:23]} (18... f5 $5 {[%cal Rf5g4]} 19. Ne5 (19. fxg5 fxg4 20. Rxf8+ Qxf8 $17) 19... Qe7 $15) 19. Nh6+ $1 {[%emt 0:00:08]} Kh8 {[%emt 0:05:53]} 20. Qh5 {[%emt 0:03:48]} ({Don't play} 20. Qg4 f6 21. Nf5 Qd7 $15) 20... Rc7 {[%emt 0:02:29]} 21. Ng4 {[%emt 0:10:53]} (21. Nf5 $15 f6 22. Nxd6 Qxd6 23. Nc3) 21... f6 $17 {[%emt 0:02:44][%cal Od5d4]} 22. Rf3 {[%emt 0:01:03]} (22. Rcd1 $17) 22... g6 {[%emt 0:02:33]} (22... d4 $1 $19 {And now ...f5 would win.} 23. Ra1 (23. Rh3 $2 g6 $19) 23... f5) 23. Qh4 {[%emt 0:00:33] [#]} d4 $1 {[%emt 0:01:15][%mdl 512]} 24. Rff1 {[%emt 0:05:09] [#]} (24. exd4 cxd4) 24... Be7 $1 {[%emt 0:10:43][%cal Bd6e7,Be7h4,Bh4f6,Bf6d4][%mdl 32]} 25. exd4 {[%emt 0:00:52]} ({White should try} 25. Nf2 $17) 25... cxd4 $15 {[%emt 0:00:05]} 26. Rcd1 $2 {[%emt 0:04:25] [#]} ({Only move:} 26. Rxc7 $15 Qxc7 27. f5 (27. Bxd4 $2 {loses.} Rd8 $19) 27... gxf5 28. Nh6) 26... Rc2 $1 $19 {[%emt 0:05:01] ...Nc3 is the strong threat.} 27. Nf2 {[%emt 0:05:25]} f5 {[%emt 0:01:43]} (27... Nd2 $19 28. Rfe1 Qd5) 28. Rxd4 $11 {[%emt 0:02:46]} Bxh4 {[%emt 0:00:25]} 29. Rxd8+ {[%emt 0:00:03]} Kg8 {[%emt 0:01:30]} 30. Rxf8+ {[%emt 0:00:29]} Kxf8 {[%emt 0:00:05]} 31. g3 {[%emt 0:00:05]} Bf6 $36 {[%emt 0:01:52][%mdl 2048] Black has the initiative.} 32. Nd3 {[%emt 0:02:15] [#]} (32. Bxf6 $1 $11 {and White is okay.} Nxf6 33. a3) 32... Rxb2 $1 {[%emt 0:02:38][%mdl 512]} 33. Naxb2 {[%emt 0:00:05] Hoping for Ne5.} Bd4+ {[%emt 0:00:04]} 34. Nf2 {[%emt 0:00:07]} Bxb2 {[%emt 0:01:33] A strong pair of Bishops.} 35. Rd1 {[%emt 0:00:14] Dodges Bd4} Nxf2 {[%emt 0:00:46]} (35... Ke7 $19 36. Nxe4 fxe4) 36. Kxf2 $17 {[%emt 0:00:04]} Ke7 {[%emt 0:00:11]} 37. Ke3 {[%emt 0:00:07]} Bc3 {[%emt 0:00:27]} 38. Rc1 {[%emt 0:00:30]} Ba5 {[%emt 0:00:06]} 39. b4 {[%emt 0:00:17]} Bb6+ {[%emt 0:00:08]} (39... Bxb4 $2 40. Rc7+ Ke6 41. Rxb7 Bc5+ 42. Ke2 $18) 40. Kd3 {[%emt 0:00:04]} Ba6+ {[%emt 0:00:59]} 41. Kc3 {[%emt 0:00:08]} Bb5 {[%emt 0:00:37]} 42. Kb3 {[%emt 0:00:20]} Bd7 {[%emt 0:00:18]} 43. a4 {[%emt 0:00:37]} h6 {[%emt 0:00:32]} (43... a6 $15) 44. b5 {[%emt 0:04:40]} (44. a5 $5 {[%cal Ra5b6]} Bd8 45. Re1+ Kd6 46. Rd1+ Kc7 47. Rc1+ Kb7 48. Rd1 Be6+ 49. Kc2 $11) 44... g5 {[%emt 0:00:26]} 45. Kb4 {[%emt 0:00:19]} gxf4 {[%emt 0:01:11]} 46. gxf4 {[%emt 0:00:04]} Kf6 {[%emt 0:00:43]} 47. Rc3 {[%emt 0:03:16] The position is equal.} Bf2 {[%emt 0:00:51]} 48. Rd3 {[%emt 0:03:17]} Ke7 {[%emt 0:00:33]} 49. a5 {[%emt 0:00:41]} Kd8 {[%emt 0:01:08]} 50. Rd6 {[%emt 0:03:05][%mdl 1024] White has compensation.} (50. b6 {is more complex.} axb6 51. a6 b5 52. Rh3) 50... Be3 {[%emt 0:00:50]} 51. Rxh6 {[%emt 0:02:10] Threatens to win with b6.} Bxf4 {[%emt 0:00:04]} 52. Rh8+ {[%emt 0:00:03]} Kc7 {[%emt 0:00:05] [#]} 53. b6+ $1 {[%emt 0:00:04]} axb6 {[%emt 0:00:09]} 54. a6 {[%emt 0:00:04] Rh7 would be deadly.} Bc6 {[%emt 0:00:51]} 55. a7 {[%emt 0:00:18] Black must now prevent h4.} Bd6+ {[%emt 0:00:52]} 56. Kb3 {[%emt 0:00:20] aiming for h4.} Bd5+ {[%emt 0:01:08]} 57. Kc2 {[%emt 0:00:11]} Be5 {[%emt 0:00:38]} 58. a8=Q {[%emt 0:01:00]} Bxa8 {[%emt 0:00:04]} 59. Rxa8 {[%emt 0:00:03] Strongly threatening h4.} Bxh2 $11 {[%emt 0:00:04][%mdl 4096] Endgame KR-KB} 60. Rf8 {[%emt 0:00:05]} f4 {[%emt 0:00:17]} 61. Rf6 {[%emt 0:00:14]} Kb7 {[%emt 0:00:54]} 62. Kc3 {[%emt 0:00:19]} Ka6 {[%emt 0:00:07]} 63. Kc4 {[%emt 0:00:12]} Bg3 {[%emt 0:00:13]} 64. Rf8 {[%emt 0:00:26]} Bh2 {[%emt 0:00:11]} 65. Ra8+ {[%emt 0:02:54]} Kb7 {[%emt 0:00:04]} 66. Rg8 {[%emt 0:00:40]} Ka6 {[%emt 0:00:16]} 67. Ra8+ {[%emt 0:00:46]} Kb7 {[%emt 0:00:04]} 68. Rh8 {[%emt 0:00:58]} Bg1 {[%emt 0:00:16]} 69. Rf8 {[%emt 0:00:07]} Be3 {[%emt 0:00:19]} 70. Kb5 {[%emt 0:00:08]} Kc7 {[%emt 0:00:06]} 71. Rf6 {[%emt 0:00:06]} Kd7 {[%emt 0:00:12]} 72. Rxf4 {[%emt 0:00:19][%mdl 64] Deflection} Bxf4 {[%emt 0:00:04]} 73. Kxb6 {[%emt 0:00:03] And White is the lucky defender. An interesting game.   Weighted Error Value: White=0.20 (precise) /Black=0.17 (very precise)} 1/2-1/2

[Event "1st Bangalore GM-Open-A 2024"]
[Site "Bangalore"]
[Date "2024.01.18"]
[Round "1.8"]
[White "Joel Paul Ganta"]
[Black "Fawzy, Adham"]
[Result "1/2-1/2"]
[ECO "E49"]
[WhiteElo "2130"]
[BlackElo "2522"]
[Annotator "TA"]
[PlyCount "54"]
[EventDate "2024.01.20"]
[EventType "swiss"]
[EventCountry "IND"]
[SourceTitle "playchess.com"]
[Source "ChessBase"]
[SourceQuality "1"]
[TimeControl "5400+30"]

{[%evp 26,54,16,8,14,18,20,20,20,20,75,69,66,0,0,0,0,0,22,0,0,0,8,-204,-157,-154,8,-176,0,-155,15]} 1. d4 {[%emt 0:00:02]} Nf6 {[%emt 0:00:22]} 2. c4 {[%emt 0:00:04]} e6 {[%emt 0:00:55]} 3. Nc3 {[%emt 0:00:25]} Bb4 {[%emt 0:00:10]} 4. e3 {[%emt 0:00:05]} b6 {[%emt 0:00:21]} 5. a3 {[%emt 0:00:06]} Bxc3+ {[%emt 0:00:43]} 6. bxc3 {[%emt 0:00:01]} O-O {[%emt 0:02:13]} 7. Bd3 {[%emt 0:00:03]} d5 {[%emt 0:01:28]} 8. cxd5 {[%emt 0:00:22]} exd5 {[%emt 0:00:20]} 9. Ne2 {[%emt 0:00:26][%cal Bg1e2,Be2g3,Bg3f5][%mdl 32]} c5 {[%emt 0:02:00]} 10. O-O {[%emt 0:00:35]} Ba6 {[%emt 0:00:17]} 11. Ng3 {[%emt 0:00:27]} Bxd3 {[%emt 0:03:07]} 12. Qxd3 {[%emt 0:00:01]} Nc6 {[%emt 0:01:46]} 13. f3 {[%emt 0:00:02]} Re8 {[%emt 0:03:31]} 14. Bb2 {[%emt 0:14:55]} h5 {[%emt 0:03:59] E49: Nimzo-Indian: Rubinstein: 5 Bd3 d5 6 a3 Bxc3+ 7 bxc3.} 15. e4 {[%emt 0:09:58]} h4 {[%emt 0:05:10]} 16. Nf5 {[%emt 0:00:02] And now e5 would win.} dxe4 {[%emt 0:14:03] The position is equal.} 17. fxe4 {[%emt 0:00:01]} Nxe4 {[%emt 0:06:24] [#]} (17... cxd4 $1 $11 {remains equal.} 18. cxd4 Rxe4) 18. Rae1 $146 {[%emt 0:23:10]} ({Predecessor:} 18. d5 Nf6 19. c4 Ne5 20. Qh3 Nfg4 21. Nxg7 Rf8 22. Nf5 Qg5 23. Rae1 f6 24. d6 {1-0 Sarana,A (2666)-Vokhidov,S (2536) Titled Tuesday intern op 14th Dec blitz 2021 (6)}) 18... Nf6 {[%emt 0:13:06]} 19. Qf3 {[%emt 0:22:53]} (19. Rxe8+ $14 Qxe8 20. Qd2) 19... Qd5 $1 $11 {[%emt 0:16:47]} 20. Qf4 {[%emt 0:06:12]} Rxe1 {[%emt 0:01:36]} 21. Rxe1 {[%emt 0:00:01] [#] aiming for c4.} h3 {[%emt 0:02:17]} 22. gxh3 {[%emt 0:00:37][%cal Oc3c4] c4! would be deadly. Active counter play!} (22. Re2 $5 {[%cal Rc3c4]} g6 23. Nh6+ {[%mdl 64] Discovered Attack} Kg7 24. c4 $11 (24. Rf2 Nh5 $11)) 22... Re8 $1 {[%emt 0:03:07]} 23. Rf1 {[%emt 0:04:58] Black must now prevent Qg5.} Re2 $40 {[%emt 0:08:19][%csl Ge2][%cal Rd5g2][%mdl 128] Black attacks.} 24. Rf2 {[%emt 0:00:54] Prevents Qg2+} (24. Qg5 $1 $11 {and White is okay.} g6 25. c4 Qxc4 26. d5 (26. Qxf6 gxf5 27. Qg5+ Kf8 $11) 26... Rxb2 27. Qxf6 (27. dxc6 Qe2 $11) 27... gxf5 28. Qxb2 Qxd5 29. Re1) 24... Re1+ {[%emt 0:00:02]} 25. Rf1 {[%emt 0:00:02]} Re2 {[%emt 0:00:06] [#]} (25... Rxf1+ $17 26. Qxf1 Qa2) 26. Rf2 $2 {[%emt 0:00:03]} (26. Qg5 $11 {and White stays safe.} g6 27. c4 Qxc4 28. d5 (28. Qxf6 gxf5 29. Qg5+ Kf8 $11) 28... Rxb2 29. Qxf6 (29. dxc6 Qe2 $11) 29... gxf5 30. Qxb2 Qxd5 31. Qg2+ Qxg2+ 32. Kxg2) 26... Re1+ {[%emt 0:00:13]} 27. Rf1 {[%emt 0:00:05] Chess con chili.} Re2 $2 {[%emt 0:00:25] Weighted Error Value: White=0.57/Black=0.45} (27... Rxf1+ $17 28. Qxf1 Qa2) 1/2-1/2

[Event "1st Bangalore GM-Open-A 2024"]
[Site "Bangalore"]
[Date "2024.01.18"]
[Round "1.9"]
[White "Iniyan, Pa"]
[Black "Nagare Akhilesh"]
[Result "1-0"]
[ECO "D32"]
[WhiteElo "2515"]
[BlackElo "2123"]
[Annotator "TA"]
[PlyCount "55"]
[EventDate "2024.01.20"]
[EventType "swiss"]
[EventCountry "IND"]
[SourceTitle "playchess.com"]
[Source "ChessBase"]
[SourceQuality "1"]
[TimeControl "5400+30"]

{[%evp 20,55,36,33,35,35,52,51,74,74,93,83,91,100,147,82,269,258,262,261,257,273,274,277,264,260,370,360,359,353,391,381,387,365,365,365,351,343]} 1. d4 {[%emt 0:00:54]} d5 {[%emt 0:00:28]} 2. c4 {[%emt 0:01:22]} e6 {[%emt 0:00:21]} 3. Nc3 {[%emt 0:00:15]} c5 {[%emt 0:00:13]} 4. cxd5 {[%emt 0:00:48]} exd5 {[%emt 0:00:06]} 5. Nf3 {[%emt 0:01:09]} Nc6 {[%emt 0:00:48]} 6. e3 {[%emt 0:00:13]} Nf6 {[%emt 0:00:31]} 7. Be2 {[%emt 0:00:13]} Be7 {[%emt 0:03:08]} 8. O-O {[%emt 0:00:53]} O-O {[%emt 0:00:51]} 9. dxc5 {[%emt 0:05:09]} Bxc5 {[%emt 0:00:55]} 10. b3 {[%emt 0:00:10]} Re8 {[%emt 0:04:21]} 11. Bb2 {[%emt 0:00:37]} Be6 {[%emt 0:05:47] D32: Tarrasch Defence: Sidelines and lines without g3.} 12. Rc1 {[%emt 0:00:44][%cal Oc3d5] [#]} Be7 $146 {[%emt 0:00:33]} ({Predecessor:} 12... Qe7 13. Nb5 Ne4 14. Nbd4 Rac8 15. Nxe6 fxe6 16. Bd3 Nb4 17. Bb1 Bd6 18. Qe2 Nf6 19. Ne5 {1-0 Li,D (2539)-Kevlishvili,R (2536) WchT Pool-A 13th rapid 2022 (4.2)}) 13. Nd4 {[%emt 0:03:04]} Qd7 {[%emt 0:15:21] White is slightly better.} 14. Na4 {[%emt 0:04:58]} Rac8 {[%emt 0:10:29]} 15. Bb5 {[%emt 0:07:39]} Red8 {[%emt 0:09:25]} 16. f3 {[%emt 0:10:25] White is more active.} Bd6 {[%emt 0:04:14] [#]} ({Black should try} 16... Qd6) 17. Kh1 {[%emt 0:10:28]} (17. Bxc6 $142 $1 bxc6 18. Nc5) 17... Qe7 {[%emt 0:02:59]} (17... Qe8 $16 {might work better.}) 18. Bxc6 $18 {[%emt 0:04:25]} ({Less strong is} 18. Nxc6 bxc6 19. Bxc6 (19. Rxc6 Rb8 $11) 19... h6 $16) 18... bxc6 {[%emt 0:08:49]} 19. Nxc6 {[%emt 0:00:10]} Rxc6 {[%emt 0:00:36]} 20. Rxc6 {[%emt 0:00:11]} Bd7 {[%emt 0:00:41]} 21. Rc2 {[%emt 0:02:40]} Qxe3 {[%emt 0:03:27]} 22. Qd2 {[%emt 0:00:29]} ({Don't play} 22. Bxf6 $6 Qf4 23. g3 (23. Bxd8 $2 Qxh2#) 23... Qxf6 $16) 22... Qe6 {[%emt 0:03:58]} (22... Qe7 $142 23. Re1 Be6) 23. Nc5 {[%emt 0:00:22] White is winning.} Qf5 {[%emt 0:03:09]} 24. Bxf6 {[%emt 0:00:29]} gxf6 {[%emt 0:01:58]} 25. g4 {[%emt 0:02:23] Repels Qh5} ({Not} 25. Nxd7 Rxd7 26. g4 Qe5 $18) 25... Qf4 {[%emt 0:02:17]} 26. Nxd7 {[%emt 0:05:17]} Rxd7 {[%emt 0:00:31]} 27. Qxd5 {[%emt 0:00:13]} Rc7 {[%emt 0:00:44]} 28. Qd2 {[%emt 0:00:08] White took control after the opening.   Weighted Error Value: White=0.06 (flawless) /Black=0.35} 1-0